fUSD/lending_fUSD_20251206
["ID","MTS","AMOUNT","RATE_DAILY","PERIOD"]
[396506600,1765015843474,-150.0,0.000174,2]
[396506601,1765015843482,-150.0,0.000174,2]
[396506602,1765015843491,-150.0,0.00017419,2]
[396506603,1765015843500,-150.0,0.00017441,2]
[396506604,1765015843509,-7000.0,0.0001745,2]
[396506605,1765015843518,-150.0,0.00017452,2]
[396506606,1765015843528,-150.0,0.0001746,2]
[396506607,1765015843538,-1000.0,0.00017462,2]
[396506608,1765015843547,-150.0,0.00017477,2]
[396506609,1765015843556,-150.0,0.00017486,2]
[396506610,1765015843565,-150.0,0.00017486,2]
[396506611,1765015843574,-1308.33235887,0.000175,2]
[396506612,1765015843583,-150.0,0.00017503,2]
[396506613,1765015843592,-4676.57247342,0.00017511,2]
[396506614,1765015843602,-150.0,0.0001752,2]
[396506615,1765015843611,-2834.0,0.00017525,2]
[396506616,1765015843620,-500.0,0.00017525,2]
[396506617,1765015843629,-150.0,0.0001753,2]
[396506618,1765015843639,-537.6845,0.00017534,2]
[396506619,1765015843649,-150.0,0.00017535,2]
[396506620,1765015843658,-5032.89170656,0.00017559,2]
[396506621,1765015843669,-5164.31043572,0.00017559,2]
[396506622,1765015843679,-150.0,0.00017566,2]
[396506623,1765015843689,-306.0,0.00017571,2]
[396506624,1765015843698,-245.31,0.00017572,2]
[396506625,1765015843708,-150.0,0.00017594,2]
[396506626,1765015843718,-809.94,0.00017595,2]
[396506627,1765015843727,-150.0,0.00017609,2]
[396506628,1765015843737,-150.0,0.00017614,2]
[396506629,1765015843747,-150.0,0.00017614,2]
[396506630,1765015843757,-150.0,0.00017628,2]
[396506631,1765015843766,-150.0,0.0001764,2]
[396506632,1765015843775,-150.0,0.0001764,2]
[396506633,1765015843784,-306.0,0.0001765,2]
[396506634,1765015843794,-150.0,0.00017652,2]
[396506635,1765015843804,-2834.0,0.00017662,2]
[396506636,1765015843814,-500.0,0.00017662,2]
[396506637,1765015843824,-1000.0,0.00017666,2]
[396506638,1765015843833,-306.0,0.00017682,2]
[396506639,1765015843843,-150.0,0.00017687,2]
[396506640,1765015843852,-150.0,0.0001769,2]
[396506641,1765015843862,-150.0,0.000177,2]
[396506642,1765015843871,-7000.0,0.000177,2]
[396506643,1765015843880,-1308.33235887,0.000177,2]
[396506644,1765015843890,-150.0,0.0001771,2]
[396506645,1765015843899,-161.07322189,0.00017722,2]
[396506646,1765015843908,-193.42,0.00017735,2]
[396506647,1765015843918,-150.0,0.00017743,2]
[396506648,1765015843927,-150.0,0.00017743,2]
[396506649,1765015843937,-150.0,0.00017752,2]
[396506650,1765015843948,-150.0,0.0001776,2]
[396506651,1765015843957,-311.08615561,0.00017762,7]
[396506652,1765015843967,-150.0,0.00017765,2]
[396506653,1765015843975,-150.0,0.00017768,2]
[396506654,1765015843984,-243.0,0.00017775,2]
[396506655,1765015843994,-193.42,0.00017781,2]
[396506656,1765015844003,-801.68444085,0.00017796,2]
[396506657,1765015844012,-2834.0,0.00017799,2]
[396506658,1765015844021,-500.0,0.00017799,2]
[396506659,1765015844031,-500.0,0.00017808,2]
[396506660,1765015844040,-150.0,0.00017814,2]
[396506661,1765015844050,-150.0,0.0001782,2]
[396506662,1765015844059,-150.0,0.00017826,2]
[396506663,1765015844068,-193.42,0.00017827,2]
[396506664,1765015844077,-166.12,0.00017828,2]
[396506665,1765015844086,-150.0,0.00017843,2]
[396506666,1765015844095,-306.0,0.00017847,2]
[396506667,1765015844104,-250.0,0.00017868,2]
[396506668,1765015844113,-809.94,0.00017868,2]
[396506669,1765015844122,-1500.0,0.00017868,2]
[396506670,1765015844131,-1500.0,0.00017868,2]
[396506671,1765015844143,-1361.67702976,0.00017868,2]
[396506672,1765015844152,-416.18647258,0.00017868,2]
[396506673,1765015844162,-1500.0,0.00017868,2]
[396506674,1765015844173,-1500.0,0.00017868,2]
[396506675,1765015844184,-597.29960805,0.00017868,2]
[396506676,1765015844193,-150.0,0.00017871,2]
[396506677,1765015844203,-150.0,0.00017871,2]
[396506678,1765015844212,-2534.94863569,0.00017873,2]
[396506679,1765015844222,-215.48627334,0.00017873,3]
[396506680,1765015844231,-297.42503577,0.00017873,2]
[396506681,1765015844240,-150.0,0.00017876,2]
[396506682,1765015844249,-150.0,0.0001788,2]
[396506683,1765015844258,-150.0,0.00017884,2]
[396506684,1765015844268,-25000.0,0.00017891,3]
[396506685,1765015844276,-25000.0,0.000179,3]
[396506686,1765015844286,-4068.22257957,0.000179,3]
[396506687,1765015844294,-25000.0,0.000179,3]
[396506688,1765015844303,-480.30253659,0.000179,3]
[396506689,1765015844313,-25000.0,0.000179,3]
[396506690,1765015844322,-25000.0,0.000179,3]
[396506691,1765015844332,-10000.0,0.000179,2]
[396506692,1765015844341,-5032.89170656,0.000179,2]
[396506693,1765015844350,-5164.31043572,0.000179,2]
[396506694,1765015844359,-1297.46882781,0.000179,2]
[396506695,1765015844368,-1308.33235887,0.000179,2]
[396506696,1765015844378,-150.0,0.00017922,2]
[396506697,1765015844387,-2834.0,0.00017936,2]
[396506698,1765015844397,-500.0,0.00017936,2]
[396506699,1765015844406,-150.0,0.00017938,2]
[396506700,1765015844415,-306.0,0.00017939,2]
[396506701,1765015844424,-150.0,0.00017942,2]
[396506702,1765015844433,-169.39,0.00017945,2]
[396506703,1765015844442,-500.0,0.00017945,2]
[396506704,1765015844452,-7000.0,0.0001795,2]
[396506705,1765015844462,-2351.0,0.0001795,2]
[396506706,1765015844472,-200.1,0.00017959,2]
[396506707,1765015844481,-902.27037785,0.00017963,2]
[396506708,1765015844491,-500.0,0.00017973,2]
[396506709,1765015844501,-500.0,0.00017973,2]
[396506710,1765015844511,-500.0,0.00017973,2]
[396506711,1765015844520,-500.0,0.00017973,2]
[396506712,1765015844529,-500.0,0.00017973,2]
[396506713,1765015844538,-500.0,0.00017973,2]
[396506714,1765015844547,-500.0,0.00017973,2]
[396506715,1765015844557,-160.21168821,0.00017973,2]
[396506716,1765015844566,-500.0,0.00017973,2]
[396506717,1765015844575,-500.1448245,0.00017973,2]
[396506718,1765015844584,-500.1243461,0.00017973,2]
[396506719,1765015844593,-161.67461867,0.00017973,2]
[396506720,1765015844602,-500.0,0.00017973,2]
[396506721,1765015844611,-500.0,0.00017973,2]
[396506722,1765015844621,-500.0,0.00017973,2]
[396506723,1765015844630,-500.07540249,0.00017973,2]
[396506724,1765015844639,-500.12093731,0.00017973,2]
[396506725,1765015844648,-500.0,0.00017973,2]
[396506726,1765015844657,-160.21076448,0.00017973,2]
[396506727,1765015844666,-200.17966938,0.00017973,2]
[396506728,1765015844675,-500.11588328,0.00017973,2]
[396506729,1765015844685,-500.0,0.00017973,2]
[396506730,1765015844695,-150.0,0.00017973,2]
[396506731,1765015844704,-500.0,0.00017973,2]
[396506732,1765015844713,-162.00374227,0.00017973,2]
[396506733,1765015844722,-500.0,0.00017973,2]
[396506734,1765015844731,-500.0,0.00017973,2]
[396506735,1765015844740,-517.60268897,0.00017973,2]
[396506736,1765015844749,-329.95025726,0.00017973,2]
[396506737,1765015844758,-500.0,0.00017973,2]
[396506738,1765015844767,-500.15286288,0.00017973,2]
[396506739,1765015844777,-206.14819369,0.00017973,2]
[396506740,1765015844786,-500.05141337,0.00017973,2]
[396506741,1765015844795,-554.64439175,0.00017973,2]
[396506742,1765015844804,-500.0,0.00017973,2]
[396506743,1765015844813,-500.0,0.00017973,2]
[396506744,1765015844822,-587.57634903,0.00017973,2]
[396506745,1765015844831,-333.79268519,0.00017973,2]
[396506746,1765015844840,-160.19575526,0.00017973,2]
[396506747,1765015844849,-160.2084447,0.00017973,2]
[396506748,1765015844859,-500.06751975,0.00017973,2]
[396506749,1765015844868,-160.20296262,0.00017973,2]
[396506750,1765015844877,-160.24573342,0.00017973,2]
[396506751,1765015844886,-500.0,0.00017973,2]
[396506752,1765015844894,-311.98554059,0.00017973,2]
[396506753,1765015844903,-500.0,0.00017973,2]
[396506754,1765015844913,-160.19463102,0.00017973,2]
[396506755,1765015844922,-160.20966807,0.00017973,2]
[396506756,1765015844931,-500.0,0.00017973,2]
[396506757,1765015844940,-500.11149351,0.00017973,2]
[396506758,1765015844949,-500.0,0.00017973,2]
[396506759,1765015844957,-500.0,0.00017973,2]
[396506760,1765015844967,-156.18843256,0.00017973,2]
[396506761,1765015844976,-500.16437738,0.00017973,2]
[396506762,1765015844985,-500.08973477,0.00017973,2]
[396506763,1765015844994,-500.0,0.00017973,2]
[396506764,1765015845003,-500.27836913,0.00017973,2]
[396506765,1765015845012,-500.0,0.00017973,2]
[396506766,1765015845021,-500.0,0.00017973,2]
[396506767,1765015845030,-508.31464132,0.00017973,2]
[396506768,1765015845039,-200.21803565,0.00017973,2]
[396506769,1765015845048,-160.21322409,0.00017973,2]
[396506770,1765015845057,-500.05902909,0.00017973,2]
[396506771,1765015845066,-500.11129889,0.00017973,2]
[396506772,1765015845075,-168.19239076,0.00017973,2]
[396506773,1765015845084,-343.90657031,0.00017973,2]
[396506774,1765015845093,-500.12306727,0.00017973,2]
[396506775,1765015845102,-500.0,0.00017973,2]
[396506776,1765015845111,-500.0,0.00017973,2]
[396506777,1765015845120,-505.085201,0.00017973,2]
[396506778,1765015845129,-161.25523384,0.00017973,2]
[396506779,1765015845140,-164.45914382,0.00017973,2]
[396506780,1765015845150,-500.0,0.00017973,2]
[396506781,1765015845160,-500.0,0.00017973,2]
[396506782,1765015845169,-482.01811225,0.00017973,2]
[396506783,1765015845178,-500.0,0.00017973,2]
[396506784,1765015845187,-500.0,0.00017973,2]
[396506785,1765015845196,-219.77568388,0.00017973,2]
[396506786,1765015845205,-500.15304176,0.00017973,2]
[396506787,1765015845214,-500.0,0.00017973,2]
[396506788,1765015845223,-500.0,0.00017973,2]
[396506789,1765015845231,-160.72032991,0.00017973,2]
[396506790,1765015845240,-306.35770823,0.00017973,2]
[396506791,1765015845250,-500.0,0.00017973,2]
[396506792,1765015845260,-500.0,0.00017973,2]
[396506793,1765015845269,-500.0,0.00017973,2]
[396506794,1765015845278,-500.0,0.00017973,2]
[396506795,1765015845286,-500.77083198,0.00017973,2]
[396506796,1765015845295,-500.0,0.00017973,2]
[396506797,1765015845304,-500.0,0.00017973,2]
[396506798,1765015845314,-500.14207966,0.00017973,2]
[396506799,1765015845323,-160.1949285,0.00017973,2]
[396506800,1765015845332,-500.15316255,0.00017973,2]
[396506801,1765015845341,-160.20100282,0.00017973,2]
[396506802,1765015845350,-500.0,0.00017973,2]
[396506803,1765015845359,-160.20428879,0.00017973,2]
[396506804,1765015845368,-160.19917494,0.00017973,2]
[396506805,1765015845377,-500.08341948,0.00017973,2]
[396506806,1765015845386,-500.0,0.00017973,2]
[396506807,1765015845395,-166.53912604,0.00017973,2]
[396506808,1765015845404,-373.54709993,0.00017973,2]
[396506809,1765015845413,-163.36237473,0.00017973,2]
[396506810,1765015845422,-467.58168915,0.00017973,2]
[396506811,1765015845431,-281.95977781,0.00017973,2]
[396506812,1765015845440,-159.10862324,0.00017973,2]
[396506813,1765015845449,-328.43766857,0.00017973,2]
[396506814,1765015845459,-500.0,0.00017973,2]
[396506815,1765015845467,-500.0,0.00017973,2]
[396506816,1765015845476,-500.0,0.00017973,2]
[396506817,1765015845486,-508.01274209,0.00017973,2]
[396506818,1765015845494,-500.0,0.00017973,2]
[396506819,1765015845503,-500.0,0.00017973,2]
[396506820,1765015845512,-902.27037785,0.0001799,2]
[396506821,1765015845521,-153.94576401,0.00018,2]
[396506822,1765015845530,-155.57891233,0.00018,2]
[396506823,1765015845539,-164.22859422,0.00018,2]
[396506824,1765015845549,-196.5715657,0.00018,2]
[396506825,1765015845558,-150.0,0.00018,2]
[396506826,1765015845567,-150.0,0.00018,2]
[396506827,1765015845576,-150.0,0.00018,2]
[396506828,1765015845585,-150.0,0.00018,2]
[396506829,1765015845594,-150.0,0.00018,2]
[396506830,1765015845603,-150.0,0.00018,2]
[396506831,1765015845612,-156.13124317,0.00018,2]
[396506832,1765015845621,-150.0,0.00018,2]
[396506833,1765015845631,-150.0,0.00018,2]
[396506834,1765015845640,-538532.80726944,0.00018,2]
[396506835,1765015845649,-250.0,0.00018,2]
[396506836,1765015845659,-784927.0146192,0.00018,2]
[396506840,1765015846363,-1.7e-07,0.00018,2]
[396506842,1765015847775,500.0,0.00014834,2]
[396506843,1765015847838,500.0,0.00014834,2]
[396506844,1765015847881,500.0,0.00014834,2]
[396506845,1765015847919,442.69786364,0.00014834,2]
[396506846,1765015847971,-2811.28980391,0.00018,2]
[396506847,1765015848048,-500.0,0.00018,2]
[396506848,1765015848063,-1338.67363608,0.00018,2]
[396506849,1765015848074,-1169.3192,0.00018,2]
[396506850,1765015848085,-869.29227437,0.00018,2]
[396506865,1765015894325,6509.8196,0.00014835,2]
[396506867,1765015924035,3490.1904,0.00014835,2]
[396506868,1765015924061,10000.01,0.00014835,2]
[396506869,1765015924086,10000.01,0.00014835,2]
[396506870,1765015924111,10000.01,0.00014835,2]
[396506871,1765015924137,10000.01,0.00014835,2]
[396506872,1765015924164,10000.01,0.00014835,2]
[396506873,1765015924188,10000.01,0.00014835,2]
[396506874,1765015924212,10000.01,0.00014835,2]
[396506875,1765015924246,10000.01,0.00014835,2]
[396506876,1765015924273,10000.01,0.00014835,2]
[396506889,1765015940879,-500.0,0.00014834,2]
[396506890,1765015940915,-500.0,0.00014834,2]
[396506891,1765015940946,-500.0,0.00014834,2]
[396506892,1765015940976,-500.0,0.00014834,2]
[396506893,1765015941005,-500.0,0.00014834,2]
[396506894,1765015941034,-384.3389605,0.00014834,2]
[396506895,1765015947868,1229.22194654,0.00014834,5]
[396506896,1765015958407,500.0,0.00014835,2]
[396506897,1765015958630,500.0,0.00014835,2]
[396506898,1765015964242,175.56987413,0.00014834,2]
[396506912,1765016006921,-1356.09102809,0.00014835,2]
[396506913,1765016009051,-345.89915088,0.00014835,2]
[396506914,1765016011729,-197.48518469,0.00014835,2]
[396506915,1765016013259,-244.37335589,0.00014835,2]
[396506917,1765016015411,-204.21828752,0.00014835,2]
[396506918,1765016017577,-426.93432986,0.00014835,2]
[396506919,1765016019910,-294.24846006,0.00014835,2]
[396506920,1765016023173,-222.72595779,0.00014835,2]
[396506922,1765016043504,3055.76220487,0.00014735,2]
[396506923,1765016043530,2131.4971272,0.00014735,2]
[396506938,1765016089596,3102.53201411,0.00014735,2]
[396506939,1765016101244,300.0,0.00014834,2]
[396506940,1765016101281,300.0,0.00014834,2]
[396506941,1765016101641,1200.0,0.00014834,2]
[396506942,1765016107535,296.69681792,0.00014834,2]
[396506957,1765016161531,300.0,0.00014834,2]
[396506961,1765016178094,506.71814393,0.00014835,2]
[396506969,1765016181154,246.79937384,0.00014735,2]
[396506970,1765016210567,509.18007663,0.00014835,2]
[396506978,1765016240076,500.0,0.00014835,2]
[396506979,1765016240313,500.0,0.00014835,2]
[396506981,1765016261905,-184.48023798,0.00014835,2]
[396506982,1765016271595,106.58644637,0.00014835,2]
[396506983,1765016271620,401.11184955,0.00014835,2]
[396506985,1765016272513,-380.42943917,0.00014835,2]
[396506986,1765016275183,-200.0,0.00014835,2]
[396506993,1765016307419,-192.90349135,0.00014835,2]
[396506998,1765016401246,300.0,0.00014834,2]
[396506999,1765016401288,243.0,0.00014834,2]
[396507000,1765016401437,1200.0,0.00014834,2]
[396507001,1765016404395,273.0,0.00014835,2]
[396507005,1765016426874,-262.10058499,0.00014835,2]
[396507006,1765016429405,-154.04791848,0.00014835,2]
[396507007,1765016430054,4668.53339889,0.00014735,2]
[396507008,1765016445518,468.9517815,0.00014835,2]
[396507009,1765016461279,300.0,0.00014834,2]
[396507010,1765016461476,310.1624593,0.00014735,2]
[396507011,1765016464001,1372.7982,0.00014735,2]
[396507015,1765016493122,462.45231076,0.00014539,2]
[396507016,1765016493146,1034.61968924,0.00014539,2]
[396507017,1765016493229,170.416,0.00014539,2]
[396507019,1765016509175,500.0,0.00014835,2]
[396507020,1765016509267,500.0,0.00014835,2]
[396507022,1765016511355,611.75031463,0.00014835,2]
[396507024,1765016521256,300.0,0.00014834,2]
[396507028,1765016548376,500.0,0.00014835,2]
[396507029,1765016561864,-237.47725156,0.00014835,2]
[396507031,1765016564986,151.0,0.00014835,2]
[396507032,1765016566210,151.0,0.00014835,2]
[396507033,1765016566846,151.0,0.00014835,2]
[396507034,1765016583049,-300.0,0.00014834,2]
[396507037,1765016587225,-2035.6339296,0.00014835,2]
[396507038,1765016589372,-10000.01,0.00014835,2]
[396507039,1765016589485,-10000.01,0.00014835,2]
[396507040,1765016589605,-10000.01,0.00014835,2]
[396507041,1765016589717,-10000.01,0.00014835,2]
[396507042,1765016589860,-10000.01,0.00014835,2]
[396507043,1765016590015,-10000.01,0.00014835,2]
[396507044,1765016590102,-10000.01,0.00014835,2]
[396507045,1765016590202,-10000.01,0.00014835,2]
[396507046,1765016590294,-10000.01,0.00014835,2]
[396507047,1765016590404,-10000.01,0.00014835,2]
[396507048,1765016601768,-3694.71601899,0.00014735,2]
[396507049,1765016605219,500.0,0.00014834,2]
[396507050,1765016605267,500.0,0.00014834,2]
[396507051,1765016605310,500.0,0.00014834,2]
[396507052,1765016605361,500.0,0.00014834,2]
[396507053,1765016605413,500.0,0.00014834,2]
[396507054,1765016605450,110.57796202,0.00014834,2]
[396507055,1765016605475,281.44075803,0.00014834,2]
[396507056,1765016605540,500.0,0.00014834,2]
[396507057,1765016605648,500.0,0.00014834,2]
[396507058,1765016605698,500.0,0.00014834,2]
[396507059,1765016605759,500.0,0.00014834,2]
[396507063,1765016632873,2500.0,0.00014735,2]
[396507066,1765016641279,300.0,0.00014834,2]
[396507067,1765016644253,150.0,0.00014834,2]
[396507070,1765016671947,2472.633038,0.00014761,2]
[396507072,1765016695027,235.463,0.00014735,2]
[396507074,1765016701255,300.0,0.00014834,2]
[396507075,1765016701289,1200.0,0.00014834,2]
[396507076,1765016701335,300.0,0.00014834,2]
[396507078,1765016719863,260.47320397,9e-05,2]
[396507079,1765016719886,6309.9015821,9e-05,2]
[396507080,1765016721296,-177.29240931,0.00014835,2]
[396507082,1765016738212,1000.0,0.00014735,2]
[396507083,1765016741829,-185.86081231,0.00014835,2]
[396507084,1765016744217,271.39215187,0.00014735,2]
[396507085,1765016744517,-256.53172956,0.00014835,2]
[396507087,1765016746042,-157.96758656,0.00014835,2]
[396507088,1765016748705,-289.63368448,0.00014835,2]
[396507089,1765016750158,-245.76106695,0.00014835,2]
[396507090,1765016753011,-271.27813448,0.00014835,2]
[396507091,1765016755022,-176.96052575,0.00014835,2]
[396507092,1765016757671,200.0,0.00014795,2]
[396507093,1765016759470,-300.70918769,0.00014835,2]
[396507094,1765016761341,300.0,0.00014834,2]
[396507095,1765016761945,-299.29081231,0.00014835,2]
[396507096,1765016764250,-300.0,0.00014835,2]
[396507097,1765016765795,-184.46659073,0.00014835,2]
[396507098,1765016767330,-191.4412621,0.00014835,2]
[396507100,1765016769996,-177.2784073,0.00014835,2]
[396507104,1765016816268,1918.71626603,0.00014735,2]
[396507105,1765016816290,4522.86768573,0.00014735,2]
[396507106,1765016827267,150.0,0.00014834,2]
[396507109,1765016836720,258.63137697,0.000101,2]
[396507113,1765016881367,300.0,0.00014834,2]
[396507116,1765016889441,4768.5109373,0.0001439,2]
[396507117,1765016889464,741.59002765,0.0001439,2]
[396507120,1765016919354,9258.41997235,0.00014735,2]
[396507121,1765016919378,10000.01,0.00014735,2]
[396507122,1765016919402,10000.01,0.00014735,2]
[396507123,1765016919426,10000.01,0.00014735,2]
[396507124,1765016919450,10000.01,0.00014735,2]
[396507125,1765016919474,10000.01,0.00014735,2]
[396507126,1765016919498,10000.01,0.00014735,2]
[396507127,1765016919521,10000.01,0.00014735,2]
[396507128,1765016919545,10000.01,0.00014735,2]
[396507129,1765016919568,10000.01,0.00014735,2]
[396507132,1765016941528,300.0,0.00014734,2]
[396507138,1765016971762,1600.0,0.00014605,2]
[396507140,1765016990755,1618.04,0.00014569,2]
[396507142,1765017001234,300.0,0.00014734,2]
[396507143,1765017001273,300.0,0.00014734,2]
[396507144,1765017001316,1200.0,0.00014734,2]
[396507146,1765017011898,-303.55264971,0.00014735,2]
[396507147,1765017013980,-156.09342774,0.00014735,2]
[396507148,1765017015920,-157.46286867,0.00014735,2]
[396507149,1765017017298,-166.27444294,0.00014735,2]
[396507151,1765017025012,-284.21660658,0.00014735,2]
[396507153,1765017027119,394.04492304,0.0001466,2]
[396507171,1765017031614,-55374.55807318,0.00014735,2]
[396507172,1765017031626,-361.96402953,0.00014735,2]
[396507173,1765017031707,-1932.135623,0.00014735,2]
[396507174,1765017031747,-1822.19406559,0.00014735,2]
[396507175,1765017031759,-500.0,0.00014735,2]
[396507176,1765017031770,-3550.70735262,0.00014735,2]
[396507177,1765017031781,-7384.86883864,0.00014735,2]
[396507178,1765017031792,-440.56810984,0.00014735,2]
[396507179,1765017031805,-5879.39187,0.00014735,2]
[396507181,1765017031815,-510.0,0.00014735,2]
[396507182,1765017031826,-1650.0,0.00014735,2]
[396507193,1765017037586,4287.92507696,0.00014322,2]
[396507194,1765017037608,7675.87492304,0.00014322,2]
[396507198,1765017038046,207.68777255,0.00014734,2]
[396507239,1765017038432,193.09541299,0.00014734,2]
[396507278,1765017039551,-548.67253663,0.00014735,2]
[396507283,1765017039991,-579718.82953298,0.00014735,2]
[396507284,1765017040000,-300.0,0.0001476,2]
[396507285,1765017040009,-195.0,0.0001476,2]
[396507286,1765017040018,-300.0,0.00014784,2]
[396507287,1765017040027,-365.8974645,0.00014801,2]
[396507288,1765017040036,-196.21411934,0.00014815,2]
[396507289,1765017040046,-1000.0,0.00014833,3]
[396507290,1765017040055,-500.0,0.00014834,2]
[396507291,1765017040064,-500.0,0.00014834,2]
[396507292,1765017040073,-500.0,0.00014834,2]
[396507293,1765017040083,-500.0,0.00014834,2]
[396507294,1765017040092,-500.0,0.00014834,2]
[396507295,1765017040101,-500.0,0.00014834,2]
[396507296,1765017040110,-500.0,0.00014834,2]
[396507297,1765017040120,-500.0,0.00014834,2]
[396507298,1765017040129,-500.0,0.00014835,2]
[396507299,1765017040139,-500.0,0.00014835,2]
[396507300,1765017040148,-500.0,0.00014835,2]
[396507301,1765017040157,-500.0,0.00014835,2]
[396507302,1765017040166,-1000.0,0.00014835,2]
[396507303,1765017040176,-250.0,0.00014838,2]
[396507304,1765017040185,-250.0,0.00014921,2]
[396507305,1765017040194,-200.0,0.00014932,2]
[396507306,1765017040203,-4083.89325936,0.00014999,2]
[396507307,1765017040213,-232.52151134,0.00015,2]
[396507309,1765017040222,-772.08725232,0.00015,2]
[396507311,1765017040232,-1196.65081145,0.00015,2]
[396507312,1765017040244,-50116.84042583,0.00015,2]
[396507313,1765017040254,-592.43343956,0.00015027,2]
[396507314,1765017040263,-6441.58395172,0.00015087,2]
[396507315,1765017040271,-151.0,0.00015097,2]
[396507316,1765017040283,-93934.63054785,0.000151,2]
[396507317,1765017040292,-394.04492299,0.00015123,2]
[396507318,1765017040301,-300.0,0.00015127,2]
[396507319,1765017040310,-1000.0,0.00015127,2]
[396507320,1765017040320,-151.23726078,0.00015127,2]
[396507321,1765017040329,-200.0,0.00015127,2]
[396507322,1765017040338,-207.4,0.00015127,2]
[396507323,1765017040346,-215.0738,0.00015127,2]
[396507324,1765017040355,-223.0315306,0.00015127,2]
[396507325,1765017040365,-231.28369723,0.00015127,2]
[396507326,1765017040374,-239.84119403,0.00015127,2]
[396507327,1765017040383,-248.71531821,0.00015127,2]
[396507328,1765017040393,-257.91778498,0.00015127,2]
[396507330,1765017040402,-267.46074303,0.00015127,2]
[396507331,1765017040411,-277.35679052,0.00015127,2]
[396507332,1765017040420,-1585.56459266,0.00015206,2]
[396507333,1765017040430,-339.0,0.00015392,2]
[396507334,1765017040439,-271.27813448,0.000154,2]
[396507335,1765017040448,-1343.0,0.00015425,2]
[396507336,1765017040458,-6441.58395172,0.00015438,2]
[396507337,1765017040467,-1681.0,0.00015456,2]
[396507338,1765017040477,-592.43343954,0.00015472,2]
[396507339,1765017040486,-774.0,0.00015486,2]
[396507340,1765017040495,-45568.38,0.00015516,2]
[396507341,1765017040505,-166.66,0.00015529,2]
[396507342,1765017040513,-1221.44,0.00015531,2]
[396507343,1765017040522,-394.04492299,0.00015586,2]
[396507344,1765017040531,-477.48,0.00015596,2]
[396507345,1765017040540,-1000.0,0.00015675,2]
[396507346,1765017040549,-500.0,0.0001568,2]
[396507347,1765017040559,-500.0,0.00015681,2]
[396507348,1765017040568,-500.0,0.00015682,2]
[396507349,1765017040577,-500.0,0.00015683,2]
[396507350,1765017040586,-500.0,0.00015684,2]
[396507351,1765017040596,-500.0,0.00015685,2]
[396507352,1765017040605,-500.0,0.00015686,2]
[396507353,1765017040615,-500.0,0.00015687,2]
[396507354,1765017040624,-500.0,0.00015688,2]
[396507355,1765017040634,-500.0,0.00015689,2]
[396507356,1765017040643,-500.0,0.0001569,2]
[396507357,1765017040652,-500.0,0.00015691,2]
[396507358,1765017040662,-500.0,0.00015692,2]
[396507359,1765017040672,-500.0,0.00015693,2]
[396507360,1765017040681,-500.0,0.00015694,2]
[396507361,1765017040690,-500.0,0.00015695,2]
[396507362,1765017040699,-500.0,0.00015696,2]
[396507363,1765017040709,-500.0,0.00015697,2]
[396507364,1765017040719,-500.0,0.00015698,2]
[396507365,1765017040728,-500.0,0.00015699,2]
[396507366,1765017040738,-543.284088,0.000157,2]
[396507367,1765017040747,-150.99,0.0001579,2]
[396507368,1765017040757,-6441.58395172,0.0001579,2]
[396507369,1765017040766,-3181.93,0.00015817,2]
[396507370,1765017040776,-150.99,0.00015817,2]